bitfinex/quotes_SOLUSD_20250111
["timestamp","ask_amount","ask_price","bid_price","bid_amount"]
[1736597483529,58.00382072,187.08,187.0,8.93490162]
[1736597484041,58.00382072,187.07,187.0,8.93490162]
[1736597484232,59.54572072,187.07,186.99,8.93490162]
[1736597485444,59.54572072,187.07,186.98,56.82]
[1736597485644,59.54572072,187.07,186.98,65.75490162]
[1736597485846,59.54572072,187.07,186.99,8.93490162]
[1736597487142,59.54572072,187.07,187.01,8.93490162]
[1736597487539,58.00382072,187.07,187.02,8.93490162]
[1736597488050,58.00382072,187.11,187.04,8.93490162]
[1736597490252,58.00382072,187.1,187.02,8.93490162]
[1736597491347,58.00382072,187.1,187.01,20.0]
[1736597491521,58.00382072,187.1,187.02,8.93490162]
[1736597492049,58.00382072,187.1,187.04,8.93490162]
[1736597494767,58.00382072,187.1,187.03,8.93490162]
[1736597496630,58.00382072,187.1,187.02,23.776884]
[1736597496830,58.00382072,187.1,187.03,8.93490162]
[1736597499839,58.00382072,187.09,187.0,20.0]
[1736597500172,58.00382072,187.08,187.0,8.93490162]
[1736597500371,58.00382072,187.08,186.99,8.93490162]
[1736597500668,6.6501,187.09,186.99,8.93490162]
[1736597500669,58.00382072,187.07,186.99,8.93490162]
[1736597504072,20.0,187.04,186.95,23.776884]
[1736597504367,20.0,187.04,186.96,8.93490162]
[1736597505751,20.0,187.04,186.97,8.93490162]
[1736597512571,20.0,187.04,186.96,8.93490162]
[1736597512877,20.0,187.04,186.95,8.93490162]
[1736597513560,58.00382072,187.03,186.96,8.93490162]
[1736597514178,58.00382072,187.03,186.95,8.93490162]
[1736597514673,58.00382072,187.02,186.95,8.93490162]
[1736597514889,58.00382072,187.02,186.93,8.2444]
[1736597515045,58.00382072,187.02,186.95,8.93490162]
[1736597518075,58.00382072,187.02,186.97,8.93490162]
[1736597518374,58.00382072,187.02,186.98,23.776884]
[1736597520551,58.00382072,187.02,186.97,23.776884]
[1736597522566,58.00382072,187.01,186.97,23.776884]
[1736597522768,58.00382072,187.01,186.97,8.93490162]
[1736597523863,58.00382072,187.0,186.94,23.776884]
[1736597524178,58.00382072,187.0,186.96,23.776884]
[1736597524380,58.00382072,187.0,186.96,8.93490162]
[1736597524768,58.00382072,187.0,186.95,8.93490162]
[1736597525163,58.00382072,187.0,186.96,23.776884]
[1736597526483,58.00382072,187.0,186.96,8.93490162]
[1736597528173,58.00382072,187.0,186.96,23.776884]
[1736597528483,58.00382072,186.99,186.94,8.93490162]
[1736597532493,58.00382072,186.99,186.96,23.776884]
[1736597534490,58.00382072,186.98,186.96,23.776884]
[1736597535889,58.00382072,186.98,186.95,23.776884]
[1736597538189,58.00382072,186.98,186.97,8.93490162]
[1736597539288,58.00382072,187.05,186.97,8.93490162]
[1736597539582,58.00382072,187.04,187.0,23.776884]
[1736597543291,58.00382072,187.04,187.0,8.93490162]
[1736597543488,58.00382072,187.04,187.02,32.71178562]
[1736597544080,58.00382072,187.04,187.02,23.776884]
[1736597547391,58.00382072,187.04,187.02,8.93490162]
[1736597550175,58.00382072,187.04,187.01,8.93490162]
[1736597550380,58.00382072,187.04,187.02,23.776884]
[1736597553480,58.00382072,187.09,187.04,23.776884]
[1736597553683,58.00382072,187.09,187.06,23.776884]
[1736597553884,58.00382072,187.09,187.06,32.71178562]
[1736597555187,58.00382072,187.14,187.08,32.71178562]
[1736597555387,58.00382072,187.13,187.08,32.71178562]
[1736597555982,58.00382072,187.19,187.1,32.71178562]
[1736597557112,58.00382072,187.19,187.1,23.776884]
[1736597558016,58.00382072,187.19,187.1,8.93490162]
[1736597558301,58.00382072,187.19,187.12,23.776884]
[1736597561414,58.00382072,187.18,187.12,23.776884]
[1736597566188,58.00382072,187.18,187.12,8.93490162]
[1736597566696,58.00382072,187.18,187.14,23.776884]
[1736597566897,58.00382072,187.18,187.12,32.71178562]
[1736597567121,58.00382072,187.18,187.13,23.776884]
[1736597567488,58.00382072,187.24,187.16,32.71178562]
[1736597568094,58.00382072,187.24,187.16,23.776884]
[1736597569501,58.00382072,187.24,187.14,16.69130162]
[1736597569811,58.00382072,187.24,187.15,23.776884]
[1736597570017,20.0,187.21,187.14,6.1475]
[1736597570192,58.00382072,187.22,187.11,8.93490162]
[1736597570907,58.00382072,187.22,187.12,23.776884]
[1736597572012,58.00382072,187.22,187.11,23.776884]
[1736597572409,58.00382072,187.21,187.11,23.776884]
[1736597572611,58.00382072,187.17,187.1,1.6089]
[1736597572804,58.00382072,187.17,187.09,6.1475]
[1736597573416,58.00382072,187.17,187.1,23.776884]
[1736597575531,58.00382072,187.17,187.09,15.08240162]
[1736597575532,58.00382072,187.17,187.07,28.93490162]
[1736597576018,58.00382072,187.17,187.1,23.776884]
[1736597576720,58.00382072,187.17,187.08,32.71178562]
[1736597578606,58.00382072,187.17,187.1,23.776884]
[1736597579523,58.00382072,187.16,187.1,23.776884]
[1736597579720,58.00382072,187.16,187.1,8.93490162]
[1736597579904,58.00382072,187.16,187.11,8.93490162]
[1736597580610,58.00382072,187.16,187.1,8.93490162]
[1736597584129,58.00382072,187.16,187.09,8.93490162]
[1736597584426,58.00382072,187.16,187.1,23.776884]
[1736597585429,58.00382072,187.16,187.09,23.776884]
[1736597585631,58.00382072,187.16,187.09,32.71178562]
[1736597588430,58.00382072,187.15,187.09,32.71178562]
[1736597590012,58.00382072,187.14,187.1,8.93490162]
[1736597590207,58.00382072,187.14,187.12,23.776884]
[1736597590910,58.00382072,187.14,187.11,23.776884]
[1736597591531,58.00382072,187.14,187.09,8.93490162]
[1736597592049,58.00382072,187.14,187.05,1.6089]
[1736597592050,58.00382072,187.12,187.05,1.6089]
[1736597592256,58.00382072,187.12,187.06,8.93490162]
[1736597592547,58.00382072,187.12,187.08,23.776884]
[1736597595828,58.00382072,187.12,187.1,23.776884]
[1736597604929,58.00382072,187.12,187.09,23.776884]
[1736597605326,58.00382072,187.12,187.07,23.776884]
[1736597605526,58.00382072,187.12,187.07,32.71178562]
[1736597606043,58.00382072,187.12,187.06,23.776884]
[1736597606221,58.00382072,187.12,187.07,8.93490162]
[1736597608046,58.00382072,187.12,187.09,23.776884]
[1736597608831,58.00382072,187.12,187.09,8.93490162]
[1736597609935,58.00382072,187.12,187.11,23.776884]
[1736597610251,58.00382072,187.12,187.11,32.71178562]
[1736597611940,58.00382072,187.19,187.11,32.71178562]
[1736597612143,58.00382072,187.19,187.14,32.71178562]
[1736597613034,58.00382072,187.19,187.16,23.776884]
[1736597615560,58.00382072,187.19,187.14,8.93490162]
[1736597616656,58.00382072,187.19,187.13,32.71178562]
[1736597618850,58.00382072,187.19,187.13,23.776884]
[1736597621043,58.00382072,187.19,187.13,32.71178562]
[1736597621665,58.00382072,187.19,187.13,23.776884]
[1736597621967,58.00382072,187.18,187.13,23.776884]
[1736597623072,58.00382072,187.18,187.12,23.776884]
[1736597623452,58.00382072,187.17,187.08,1.5876]
[1736597623668,58.00382072,187.16,187.08,10.52250162]
[1736597623861,58.00382072,187.16,187.08,8.93490162]
[1736597624061,58.00382072,187.16,187.09,23.776884]
[1736597624469,58.00382072,187.16,187.09,32.71178562]
[1736597624650,58.00382072,187.16,187.09,8.93490162]
[1736597626166,58.00382072,187.16,187.08,23.776884]
[1736597626364,58.00382072,187.16,187.08,32.71178562]
[1736597629872,58.00382072,187.16,187.09,8.93490162]
[1736597630475,58.00382072,187.16,187.11,23.776884]
[1736597633377,58.00382072,187.15,187.11,23.776884]
[1736597639368,58.00382072,187.15,187.1,23.776884]
[1736597639849,58.00382072,187.15,187.08,23.776884]
[1736597640049,58.00382072,187.15,187.1,23.776884]
[1736597645368,58.00382072,187.14,187.1,23.776884]
[1736597647586,58.00382072,187.14,187.08,23.776884]
[1736597647882,58.00382072,187.14,187.08,32.71178562]
[1736597648470,58.00382072,187.14,187.08,23.776884]
[1736597648670,58.00382072,187.14,187.08,32.71178562]
[1736597648972,58.00382072,187.14,187.1,23.776884]
[1736597649354,58.00382072,187.14,187.1,32.71178562]
[1736597649578,58.00382072,187.14,187.1,8.93490162]
[1736597651967,58.00382072,187.14,187.12,23.776884]
[1736597654290,58.00382072,187.14,187.1,23.776884]
[1736597656298,58.00382072,187.14,187.08,23.776884]
[1736597656483,58.00382072,187.14,187.1,8.93490162]
[1736597660397,58.00382072,187.14,187.08,23.776884]
[1736597660598,58.00382072,187.14,187.1,8.93490162]
[1736597662198,58.00382072,187.14,187.11,8.93490162]
[1736597662509,58.00382072,187.14,187.12,23.776884]
[1736597665104,58.00382072,187.14,187.12,32.71178562]
[1736597666301,58.00382072,187.2,187.12,32.71178562]
[1736597668105,58.00382072,187.2,187.14,23.776884]
[1736597668492,58.00382072,187.2,187.14,8.93490162]
[1736597669507,58.00382072,187.2,187.15,23.776884]
[1736597670619,58.00382072,187.2,187.15,8.93490162]
[1736597674312,58.00382072,187.2,187.15,23.776884]
[1736597677136,58.00382072,187.2,187.15,8.93490162]
[1736597681129,58.00382072,187.2,187.14,32.71178562]
[1736597683406,58.00382072,187.2,187.14,23.776884]
[1736597685632,58.00382072,187.2,187.13,6.155]
[1736597685844,58.00382072,187.2,187.09,8.1725]
[1736597686045,58.00382072,187.2,187.11,8.93490162]
[1736597686216,58.00382072,187.2,187.12,23.776884]
[1736597687345,58.00382072,187.19,187.12,23.776884]
[1736597687640,58.00382072,187.19,187.1,23.776884]
[1736597687841,58.00382072,187.19,187.12,23.776884]
[1736597692437,58.00382072,187.19,187.09,8.1725]
[1736597692626,58.00382072,187.18,187.11,8.93490162]
[1736597693129,58.00382072,187.18,187.12,23.776884]
[1736597694507,58.00382072,187.18,187.1,32.71178562]
[1736597695238,58.00382072,187.15,187.07,8.93490162]
[1736597695533,58.00382072,187.15,187.08,23.776884]
[1736597695917,58.00382072,187.15,187.05,23.776884]
[1736597696141,58.00382072,187.15,187.08,23.776884]
[1736597696325,58.00382072,187.14,187.03,8.2879]
[1736597696636,58.00382072,187.13,187.05,8.93490162]
[1736597698526,5.0,187.18,187.03,8.2879]
[1736597698527,58.00382072,187.12,187.03,8.2879]
[1736597698731,58.00382072,187.12,187.04,8.93490162]
[1736597699217,58.00382072,187.12,187.05,23.776884]
[1736597700059,58.00382072,187.12,187.06,8.93490162]
[1736597702315,58.00382072,187.11,187.06,8.93490162]
[1736597702716,58.00382072,187.18,187.1,23.776884]
[1736597703040,58.00382072,187.18,187.12,23.776884]
[1736597703943,58.00382072,187.17,187.14,23.776884]
[1736597704138,58.00382072,187.17,187.14,32.71178562]
[1736597704441,58.00382072,187.22,187.16,23.776884]
[1736597705148,58.00382072,187.22,187.16,8.93490162]
[1736597705441,58.00382072,187.22,187.16,23.776884]
[1736597705626,58.00382072,187.22,187.16,32.71178562]
[1736597708327,58.00382072,187.22,187.18,32.71178562]
[1736597714045,58.00382072,187.22,187.19,8.93490162]
[1736597714246,58.00382072,187.22,187.21,8.93490162]
[1736597714443,0.06472849,187.26,187.22,23.776884]
[1736597714948,0.06472849,187.26,187.21,8.93490162]
[1736597714949,0.06472849,187.26,187.2,23.776884]
[1736597715155,0.06472849,187.26,187.24,23.776884]
[1736597716029,0.06472849,187.26,187.25,32.71178562]
[1736597716232,0.06469367,187.36,187.29,20.0]
[1736597716427,0.06469367,187.36,187.33,8.93490162]
[1736597717042,0.06469367,187.36,187.34,23.776884]
[1736597717348,0.06469367,187.36,187.35,8.93490162]
[1736597717530,0.06469367,187.36,187.34,8.93490162]
[1736597718149,0.06469367,187.36,187.33,8.93490162]
[1736597718525,0.06469367,187.36,187.34,8.93490162]
[1736597719831,0.06469367,187.36,187.35,8.93490162]
[1736597720630,0.06469367,187.36,187.35,32.71178562]
[1736597721226,0.06469367,187.36,187.35,33.5122259]
[1736597722356,0.06459982,187.42,187.39,20.0]
[1736597722576,0.06459982,187.42,187.41,8.93490162]
[1736597722863,0.06459982,187.42,187.41,32.71178562]
[1736597725633,0.06459982,187.42,187.41,23.776884]
[1736597725835,0.06459982,187.42,187.41,32.71178562]
[1736597729267,0.06459982,187.42,187.41,33.51194674]
[1736597730749,0.12902994,187.5,187.42,23.776884]
[1736597731150,0.12902994,187.5,187.43,8.93490162]
[1736597731365,0.12902994,187.5,187.43,33.51183105]
[1736597732878,0.12902994,187.5,187.47,20.0]
[1736597733081,0.12902994,187.5,187.49,32.71178562]
[1736597734267,0.12902994,187.5,187.49,23.776884]
[1736597734474,0.12902994,187.5,187.49,32.71178562]
[1736597736182,0.12902994,187.5,187.49,23.776884]
[1736597736395,0.12902994,187.5,187.4,14.49742573]
[1736597736688,0.12902994,187.5,187.4,15.14440162]
[1736597737054,0.12902994,187.5,187.41,8.93490162]
[1736597737262,0.12902994,187.5,187.4,6.2095]
[1736597737480,0.12902994,187.5,187.4,15.14440162]
[1736597737655,0.12902994,187.5,187.41,32.71178562]
[1736597738377,0.12902994,187.5,187.41,8.93490162]
[1736597740265,0.12902994,187.5,187.42,23.776884]
[1736597741076,0.12902994,187.5,187.41,32.71178562]
[1736597741285,0.12902994,187.5,187.42,23.776884]
[1736597741876,0.12902994,187.5,187.42,32.71178562]
[1736597742275,0.12902994,187.5,187.42,23.776884]
[1736597742869,58.00382072,187.48,187.36,6.2095]
[1736597743172,0.12902994,187.5,187.36,6.2095]
[1736597743173,1.5781,187.46,187.36,8.93490162]
[1736597743577,1.5781,187.46,187.38,8.93490162]
[1736597745603,1.5781,187.46,187.35,20.0]
[1736597745775,58.00382072,187.45,187.35,8.93490162]
[1736597746592,58.00382072,187.44,187.36,23.776884]
[1736597746799,58.00382072,187.42,187.34,8.93490162]
[1736597748870,58.00382072,187.4,187.34,8.93490162]
[1736597749677,58.00382072,187.39,187.32,8.93490162]
[1736597750900,58.00382072,187.39,187.33,8.93490162]
[1736597753200,58.00382072,187.39,187.29,40.29960648]
[1736597753504,58.00382072,187.39,187.31,8.93490162]
[1736597753704,1.5801,187.38,187.29,20.0]
[1736597753890,1.5801,187.38,187.31,8.93490162]
[1736597754803,58.00382072,187.37,187.31,8.93490162]
[1736597755002,58.00382072,187.37,187.3,8.93490162]
[1736597755203,58.00382072,187.37,187.31,32.71178562]
[1736597755380,58.00382072,187.37,187.32,8.93490162]
[1736597757086,58.00382072,187.37,187.31,8.93490162]
[1736597759292,58.00382072,187.37,187.32,8.93490162]
[1736597760690,1.5801,187.42,187.36,8.93490162]
[1736597760883,1.5801,187.42,187.37,8.93490162]
[1736597761079,58.00382072,187.43,187.38,8.93490162]
[1736597761294,58.00382072,187.43,187.39,8.93490162]
[1736597762097,1.5801,187.47,187.4,23.776884]
[1736597763006,1.5801,187.47,187.39,8.93490162]
[1736597763504,1.5801,187.47,187.35,20.0]
[1736597763706,1.5801,187.47,187.38,8.93490162]
[1736597764914,1.5801,187.47,187.39,32.71178562]
[1736597765122,1.5801,187.47,187.4,8.93490162]
[1736597765314,1.5801,187.47,187.39,8.93490162]
[1736597766689,58.00382072,187.48,187.42,8.93490162]
[1736597767307,58.00382072,187.48,187.44,32.71178562]
[1736597767490,0.12902994,187.5,187.46,23.776884]
[1736597767895,0.12902994,187.5,187.46,8.93490162]
[1736597768523,0.12902994,187.5,187.46,23.776884]
[1736597770502,0.12902994,187.5,187.46,13.84728147]
[1736597771017,0.12902994,187.5,187.46,23.776884]
[1736597771404,0.12902994,187.5,187.43,13.84728147]
[1736597771914,0.12902994,187.5,187.44,13.84728147]
[1736597772099,0.12902994,187.5,187.43,13.84728147]
[1736597772923,0.12902994,187.5,187.42,13.84728147]
[1736597773708,58.00382072,187.49,187.43,13.84728147]
[1736597775825,58.00382072,187.49,187.44,13.84728147]
[1736597776204,58.00382072,187.49,187.43,13.84728147]
[1736597776417,58.00382072,187.49,187.44,13.84728147]
[1736597778529,58.00382072,187.49,187.45,37.62416547]
[1736597779429,58.00382072,187.49,187.46,13.84728147]
[1736597780134,0.12902994,187.5,187.46,13.84728147]
[1736597780503,0.12902994,187.5,187.42,24.57692695]
[1736597780504,0.12902994,187.5,187.47,37.62416547]
[1736597781225,0.12902994,187.5,187.48,13.84728147]
[1736597781730,0.12902994,187.5,187.49,37.62416547]
[1736597782928,0.12902994,187.5,187.46,7.34069929]
[1736597782929,0.12902994,187.5,187.48,13.84728147]
[1736597783118,0.12902994,187.5,187.46,6.5408]
[1736597783119,0.12902994,187.5,187.46,13.84728147]
[1736597783320,0.12902994,187.5,187.47,23.776884]
[1736597784355,0.12902994,187.5,187.45,13.84728147]
[1736597784843,0.12902994,187.5,187.43,13.84728147]
[1736597785049,0.12902994,187.5,187.44,13.84728147]
[1736597785452,0.12902994,187.5,187.45,13.84728147]
[1736597788826,0.12902994,187.5,187.43,13.84728147]
[1736597789242,0.12902994,187.5,187.44,13.84728147]
[1736597789418,0.12902994,187.5,187.44,8.86360881]
[1736597791323,0.12902994,187.5,187.42,23.776884]
[1736597791528,0.12902994,187.5,187.43,8.86360881]
[1736597791842,58.13285066,187.5,187.39,4.6]
[1736597792045,58.13285066,187.5,187.42,8.86360881]
[1736597793147,58.13285066,187.5,187.44,8.86360881]
[1736597793643,58.13285066,187.5,187.43,8.86360881]
[1736597795661,58.13285066,187.5,187.44,8.86360881]
[1736597796255,58.13285066,187.5,187.45,8.86360881]
[1736597796738,0.12902994,187.5,187.48,8.86360881]
[1736597797459,0.12902994,187.5,187.47,13.84305839]
[1736597798845,0.0648174,187.5,187.47,13.84305839]
[1736597799159,0.0648174,187.5,187.49,13.84305839]
[1736597799749,0.0648174,187.5,187.48,13.84305839]
[1736597799931,0.0648174,187.5,187.47,23.776884]
[1736597800138,0.0648174,187.5,187.45,20.0]
[1736597800431,0.0648174,187.5,187.45,13.84305839]
[1736597800650,0.0648174,187.5,187.44,13.84305839]
[1736597802136,0.0648174,187.5,187.46,13.84305839]
[1736597804068,0.0648174,187.5,187.47,13.84305839]
[1736597804243,0.0648174,187.5,187.48,13.84305839]
[1736597804450,0.0648174,187.5,187.49,13.84305839]
[1736597804752,0.0648174,187.5,187.48,13.84305839]
[1736597810862,0.0648174,187.5,187.47,13.84305839]
[1736597811041,0.0648174,187.5,187.48,13.84305839]
[1736597811850,0.0648174,187.5,187.47,13.84305839]
[1736597815877,0.0648174,187.5,187.49,13.84305839]
[1736597816059,0.0648174,187.5,187.49,37.61994239]
[1736597816842,0.0648174,187.5,187.49,13.84305839]
[1736597817165,0.0648174,187.5,187.48,33.84305839]
[1736597817366,0.0648174,187.5,187.49,13.84305839]
[1736597819265,0.0648174,187.5,187.49,8.8585689]
[1736597826348,0.0648174,187.5,187.45,4.6]
[1736597826559,0.0648174,187.5,187.47,8.8585689]
[1736597827648,0.0648174,187.5,187.46,32.6354529]
[1736597827869,0.0648174,187.5,187.46,23.776884]
[1736597828072,0.0648174,187.5,187.46,32.6354529]
[1736597828569,0.0648174,187.5,187.45,4.6]
[1736597828759,0.0648174,187.5,187.44,8.8585689]
[1736597829150,0.0648174,187.5,187.45,23.776884]
[1736597829453,0.0648174,187.5,187.44,8.8585689]
[1736597829861,0.0648174,187.5,187.41,4.6]
[1736597830196,0.0648174,187.5,187.43,8.8585689]
[1736597832361,0.0648174,187.5,187.45,8.8585689]
[1736597832657,0.0648174,187.5,187.47,8.8585689]
[1736597832847,0.0648174,187.5,187.48,8.8585689]
[1736597833971,0.0648174,187.5,187.49,32.6354529]
[1736597835355,0.0648174,187.5,187.49,23.776884]
[1736597835556,0.0648174,187.5,187.49,32.6354529]
[1736597840359,0.0648174,187.5,187.49,23.776884]
[1736597840590,0.0648174,187.5,187.47,8.8585689]
[1736597840781,0.0648174,187.5,187.48,23.776884]
[1736597841094,0.0648174,187.5,187.47,8.8585689]
[1736597841790,0.0648174,187.5,187.48,23.776884]
[1736597843272,0.0648174,187.5,187.48,8.8585689]
[1736597843595,0.0648174,187.5,187.49,8.8585689]
[1736597843967,0.0648174,187.5,187.49,32.6354529]
[1736597844571,0.0648174,187.5,187.48,8.8585689]
[1736597844788,0.0648174,187.5,187.47,8.8585689]
[1736597845292,0.0648174,187.5,187.48,8.8585689]
[1736597852607,0.0648174,187.5,187.49,23.776884]
[1736597858498,0.0648174,187.5,187.49,24.57661879]
[1736597858987,0.0648174,187.5,187.49,33.43518769]
[1736597859585,0.0648174,187.5,187.49,33.56067769]
[1736597859786,0.06463455,187.54,187.53,23.776884]
[1736597859978,0.06463455,187.54,187.53,32.6354529]
[1736597861108,1.34513455,187.61,187.52,4.58]
[1736597864095,1.34513455,187.61,187.52,13.4385689]
[1736597864993,1.34513455,187.61,187.52,4.58]
[1736597865185,1.34513455,187.61,187.52,13.4385689]
[1736597865992,1.34513455,187.61,187.53,23.776884]
[1736597866200,1.34513455,187.61,187.53,32.6354529]
[1736597867889,0.06469019,187.66,187.6,8.8585689]
[1736597868102,0.06469019,187.66,187.62,8.8585689]
[1736597868387,0.06469019,187.66,187.57,20.0]
[1736597868600,0.06469019,187.66,187.59,8.8585689]
[1736597868792,20.0,187.65,187.56,8.8585689]
[1736597869403,20.06469019,187.66,187.56,8.8585689]
[1736597869604,20.06469019,187.66,187.57,23.776884]
[1736597870114,20.06469019,187.66,187.58,8.8585689]
[1736597870688,20.06469019,187.66,187.57,8.8585689]
[1736597871403,20.0,187.65,187.57,8.8585689]
[1736597873004,0.06469019,187.66,187.59,8.8585689]
[1736597873195,0.06469019,187.66,187.61,8.8585689]
[1736597873597,0.06469019,187.66,187.55,23.776884]
[1736597874219,20.0,187.64,187.54,6.4947]
[1736597875416,20.0,187.64,187.52,10.3790689]
[1736597875602,20.0,187.62,187.52,10.3790689]
[1736597876107,20.0,187.62,187.52,8.8585689]
[1736597877117,25.0,187.62,187.49,6.4947]
[1736597877317,59.51352072,187.61,187.5,8.8585689]
[1736597878921,59.51352072,187.61,187.51,23.776884]
[1736597881618,59.51352072,187.61,187.5,8.8585689]
[1736597882125,59.51352072,187.61,187.48,8.8585689]
[1736597882923,59.51352072,187.61,187.47,1.5205]
[1736597882924,59.51352072,187.61,187.49,32.6354529]
[1736597884232,64.51352072,187.61,187.47,1.5205]
[1736597884442,64.51352072,187.61,187.48,8.8585689]
[1736597884926,20.0,187.57,187.45,6.4947]
[1736597885221,20.0,187.56,187.46,8.8585689]
[1736597885725,20.0,187.57,187.46,8.8585689]
[1736597886923,1.658,187.56,187.44,8.8585689]
[1736597887319,58.00382072,187.55,187.44,8.8585689]
[1736597887929,58.00382072,187.55,187.45,8.8585689]
[1736597888429,58.00382072,187.55,187.46,8.8585689]
[1736597893537,58.00382072,187.55,187.47,8.8585689]
[1736597896641,58.00382072,187.55,187.49,8.8585689]
[1736597897042,58.00382072,187.55,187.48,8.8585689]
[1736597898854,58.00382072,187.55,187.49,8.8585689]
[1736597899348,58.00382072,187.55,187.48,8.8585689]
[1736597899955,1.658,187.56,187.48,8.8585689]
[1736597900533,1.658,187.56,187.46,20.0]
[1736597900835,1.658,187.56,187.46,28.8585689]
[1736597901139,1.658,187.56,187.47,23.776884]
[1736597901536,1.658,187.56,187.43,4.64]
[1736597901731,6.1291,187.55,187.44,8.8585689]
[1736597902223,6.1291,187.55,187.41,67.8347]
[1736597902426,6.1291,187.55,187.42,8.8585689]
[1736597902636,20.0,187.52,187.42,8.8585689]
[1736597903227,20.0,187.52,187.43,23.776884]
[1736597904027,20.0,187.52,187.42,23.776884]
[1736597905753,20.0,187.52,187.42,32.6354529]
[1736597907146,20.0,187.52,187.42,23.776884]
[1736597907346,58.00382072,187.51,187.42,23.776884]
[1736597907942,58.00382072,187.51,187.42,32.6354529]
[1736597911551,58.00382072,187.51,187.42,23.776884]
[1736597911758,20.0,187.52,187.41,65.5585689]
[1736597911759,58.00382072,187.49,187.41,56.7]
[1736597911953,58.00382072,187.48,187.35,4.64]
[1736597912152,58.00382072,187.47,187.37,8.8585689]
[1736597912451,58.00382072,187.47,187.39,8.8585689]
[1736597914143,58.00382072,187.47,187.36,23.776884]
[1736597914346,58.00382072,187.46,187.35,8.8585689]
[1736597914653,58.00382072,187.46,187.36,23.776884]
[1736597916740,58.00382072,187.46,187.36,32.6354529]
[1736597917039,58.00382072,187.46,187.36,8.8585689]
[1736597917845,58.00382072,187.45,187.36,8.8585689]
[1736597919962,58.00382072,187.45,187.33,6.3393]
[1736597920149,1.6268,187.44,187.35,8.8585689]
[1736597921143,1.6268,187.44,187.36,8.8585689]
[1736597923849,58.00382072,187.43,187.36,8.8585689]
[1736597924154,58.00382072,187.43,187.37,8.8585689]
[1736597924542,58.00382072,187.43,187.37,23.776884]
[1736597927461,58.00382072,187.43,187.31,0.80043865]
[1736597927666,64.43204242,187.43,187.32,8.8585689]
[1736597927860,64.43204242,187.43,187.31,8.8585689]
[1736597928176,64.43204242,187.43,187.3,10.4538689]
[1736597928358,64.43204242,187.43,187.31,23.776884]
[1736597928674,57.93964242,187.42,187.31,32.6354529]
[1736597931055,57.93964242,187.42,187.31,23.776884]
[1736597931360,57.93964242,187.42,187.29,65.5585689]
[1736597931567,57.93964242,187.41,187.29,56.7]
[1736597931770,1.6431,187.4,187.29,56.7]
[1736597933081,57.93964242,187.39,187.29,23.776884]
[1736597938156,57.93964242,187.39,187.27,8.8585689]
[1736597938357,57.93964242,187.38,187.27,8.8585689]
[1736597938557,57.93964242,187.38,187.28,23.776884]
[1736597940682,1.5936,187.36,187.23,8.858569]
[1736597940874,59.53324242,187.36,187.23,17.7171379]
[1736597941081,59.53324242,187.36,187.24,23.776884]
[1736597942085,59.53324242,187.36,187.25,8.8585689]
[1736597942861,59.53324242,187.36,187.26,8.8585689]
[1736597943068,57.93964242,187.35,187.27,8.8585689]
[1736597943278,57.93964242,187.35,187.28,8.8585689]
[1736597943601,57.93964242,187.35,187.27,8.8585689]
[1736597946379,57.93964242,187.35,187.28,8.8585689]
[1736597946588,57.93964242,187.35,187.3,8.8585689]
[1736597953696,57.93964242,187.35,187.29,8.8585689]
[1736597954795,57.93964242,187.35,187.24,1.529]
[1736597955001,57.93964242,187.35,187.27,8.8585689]
[1736597957815,57.93964242,187.35,187.25,23.776884]
[1736597957816,57.93964242,187.34,187.25,8.8585689]
[1736597957990,57.93964242,187.34,187.28,8.8585689]
[1736597958375,57.93964242,187.34,187.29,8.8585689]
[1736597958604,57.93964242,187.34,187.31,8.8585689]
[1736597958781,1.6095,187.41,187.33,8.8585689]
[1736597959285,1.6095,187.41,187.34,8.8585689]
[1736597959684,1.6095,187.41,187.33,8.8585689]
[1736597962205,1.6095,187.41,187.35,8.8585689]
[1736597962792,1.6095,187.41,187.36,8.8585689]
[1736597963811,1.6095,187.41,187.35,8.8585689]
[1736597965331,59.54914242,187.45,187.36,23.776884]
[1736597965491,59.54914242,187.45,187.36,32.6354529]
[1736597966408,59.54914242,187.45,187.37,8.8585689]
[1736597968088,59.54914242,187.45,187.38,23.776884]
[1736597968290,57.93964242,187.45,187.38,32.6354529]
[1736597971028,57.93964242,187.45,187.35,20.0]
[1736597971201,57.93964242,187.45,187.36,8.8585689]
[1736597971592,57.93964242,187.45,187.37,8.8585689]
[1736597975921,57.93964242,187.45,187.38,8.8585689]
[1736597976123,57.93964242,187.45,187.39,8.8585689]
[1736597979911,57.93964242,187.45,187.4,32.6354529]
[1736597980592,1.6041,187.49,187.4,32.6354529]
[1736597981303,1.6041,187.49,187.42,23.776884]
[1736597981504,1.6041,187.49,187.42,32.6354529]
[1736597981913,57.93964242,187.5,187.44,23.776884]